[Event "28th CRO-chT 1A-Men 2019"]
[Site "Mali Losinj"]
[Date "2019.10.05"]
[Round "8.2"]
[White "Hracek, Zbynek"]
[Black "Dreev, Aleksey"]
[Result "1/2-1/2"]
[ECO "D12"]
[WhiteElo "2555"]
[BlackElo "2662"]
[Annotator "ChessBase"]
[PlyCount "39"]
[EventDate "2019.09.28"]
[EventType "team-tourn"]
[EventCountry "CRO"]
[SourceTitle "playchess.com"]
[Source "ChessBase"]
[SourceQuality "1"]
[TimeControl "40/5400+30:1800+30"]

1. e4 {[%emt 0:00:30]} c6 {[%emt 0:01:30]} 2. d4 {[%emt 0:00:00]} d5 {[%emt 0:00:30]} 3. Nc3 {[%emt 0:00:00]} dxe4 {[%emt 0:00:30]} 4. Nxe4 {[%emt 0:00:30]} Bf5 {[%emt 0:00:00]} 5. Ng3 {[%emt 0:00:00]} Bg6 {[%emt 0:00:00]} 6. Nf3 {[%emt 0:01:00]} e6 {[%emt 0:01:30]} 7. Bd3 {[%emt 0:02:30]} Bxd3 {[%emt 0:03:30]} 8. Qxd3 {[%emt 0:01:30]} Nf6 {[%emt 0:00:00]} 9. O-O {[%emt 0:00:30]} Bd6 {[%emt 0:00:00]} 10. b3 {[%emt 0:06:30]} Nbd7 {[%emt 0:03:30]} 11. Bb2 {[%emt 0:00:30]} Qc7 {[%emt 0:00:30]} 12. c4 {[%emt 0:06:30]} O-O {[%emt 0:01:30]} 13. Ne4 {[%emt 0:04:30]} Nxe4 {[%emt 0:00:30]} 14. Qxe4 {[%emt 0:00:30]} Nf6 {[%emt 0:00:30]} 15. Qc2 {[%emt 0:00:30]} Rad8 {[%emt 0:01:30]} 16. Rad1 {[%emt 0:00:30]} Rfe8 {[%emt 0:00:30]} 17. Rfe1 {[%emt 0:01:30]} Be7 {[%emt 0:02:30]} 18. g3 {[%emt 0:03:30]} a6 {[%emt 0:01:30]} 19. Ne5 {[%emt 0:07:30]} c5 {[%emt 0:01:30]} 20. dxc5 {[%emt 0:04:30]} 1/2-1/2

[Event "28th CRO-chT 1A-Men 2019"]
[Site "Mali Losinj"]
[Date "2019.10.05"]
[Round "8.3"]
[White "Lalic, Bogdan"]
[Black "Leventic, Ivan"]
[Result "1/2-1/2"]
[ECO "A46"]
[WhiteElo "2419"]
[BlackElo "2388"]
[Annotator "ChessBase"]
[PlyCount "31"]
[EventDate "2019.09.28"]
[EventType "team-tourn"]
[EventCountry "CRO"]
[SourceTitle "playchess.com"]
[Source "ChessBase"]
[SourceQuality "1"]
[TimeControl "40/5400+30:1800+30"]

1. d4 {[%emt 0:05:30]} Nf6 {[%emt 0:00:30]} 2. Nf3 {[%emt 0:00:00]} e6 {[%emt 0:00:30]} 3. g3 {[%emt 0:00:00]} c5 {[%emt 0:01:30]} 4. Bg2 {[%emt 0:00:00]} Nc6 {[%emt 0:01:30]} 5. O-O {[%emt 0:00:00]} cxd4 {[%emt 0:01:30]} 6. Nxd4 {[%emt 0:00:30]} Qb6 {[%emt 0:00:30]} 7. Nb3 {[%emt 0:00:00]} d5 {[%emt 0:00:30]} 8. Be3 {[%emt 0:00:00]} Qa6 {[%emt 0:08:30]} 9. a4 {[%emt 0:03:30]} Na5 {[%emt 0:03:30]} 10. N1d2 {[%emt 0:11:30]} Nxb3 {[%emt 0:05:30]} 11. Nxb3 {[%emt 0:00:30]} Be7 {[%emt 0:01:30]} 12. Qd3 {[%emt 0:01:30]} Qxd3 {[%emt 0:10:30]} 13. cxd3 {[%emt 0:00:00]} Bd6 {[%emt 0:02:30]} 14. Rfc1 {[%emt 0:01:00]} Ke7 {[%emt 0:00:30]} 15. Na5 {[%emt 0:08:30]} Rd8 {[%emt 0:01:30]} 16. Bd2 {[%emt 0:06:30]} 1/2-1/2

[Event "28th CRO-chT 1A-Men 2019"]
[Site "Mali Losinj"]
[Date "2019.10.05"]
[Round "8.4"]
[White "Zivkovic, Vjekoslav"]
[Black "Loncar, Robert"]
[Result "1/2-1/2"]
[ECO "C95"]
[WhiteElo "2362"]
[BlackElo "2406"]
[Annotator "ChessBase"]
[PlyCount "40"]
[EventDate "2019.09.28"]
[EventType "team-tourn"]
[EventCountry "CRO"]
[SourceTitle "playchess.com"]
[Source "ChessBase"]
[SourceQuality "1"]
[TimeControl "40/5400+30:1800+30"]

1. e4 {[%emt 0:00:30]} e5 {[%emt 0:16:30]} 2. Nf3 {[%emt 0:00:00]} Nc6 {[%emt 0:00:30]} 3. Bb5 {[%emt 0:00:00]} a6 {[%emt 0:00:30]} 4. Ba4 {[%emt 0:00:30]} Nf6 {[%emt 0:00:30]} 5. O-O {[%emt 0:12:30]} Be7 {[%emt 0:01:30]} 6. Re1 {[%emt 0:04:30]} b5 {[%emt 0:00:30]} 7. Bb3 {[%emt 0:00:00]} d6 {[%emt 0:00:30]} 8. c3 {[%emt 0:00:00]} O-O {[%emt 0:00:30]} 9. h3 {[%emt 0:00:30]} Nb8 {[%emt 0:03:30]} 10. d4 {[%emt 0:07:30]} Nbd7 {[%emt 0:03:30]} 11. Nbd2 {[%emt 0:00:30]} Bb7 {[%emt 0:00:30]} 12. Bc2 {[%emt 0:03:30]} Re8 {[%emt 0:07:30]} 13. Nf1 {[%emt 0:00:30]} Bf8 {[%emt 0:00:30]} 14. Ng3 {[%emt 0:00:30]} g6 {[%emt 0:00:00]} 15. a4 {[%emt 0:03:30]} c5 {[%emt 0:01:00]} 16. d5 {[%emt 0:01:30]} c4 {[%emt 0:00:30]} 17. Be3 {[%emt 0:03:30]} Nc5 {[%emt 0:04:30]} 18. Qe2 {[%emt 0:01:30]} Nfd7 {[%emt 0:00:30]} 19. Nd2 {[%emt 0:00:30]} Qc7 {[%emt 0:00:00]} 20. Ngf1 {[%emt 0:00:30]} Bg7 {[%emt 0:01:00]} 1/2-1/2

[Event "28th CRO-chT 1A-Men 2019"]
[Site "Mali Losinj"]
[Date "2019.10.05"]
[Round "8.5"]
[White "Sale, Srdjan"]
[Black "Mrkonjic, Nenad"]
[Result "1-0"]
[ECO "A03"]
[WhiteElo "2412"]
[BlackElo "2347"]
[Annotator "ChessBase"]
[PlyCount "81"]
[EventDate "2019.09.28"]
[EventType "team-tourn"]
[EventCountry "CRO"]
[SourceTitle "playchess.com"]
[Source "ChessBase"]
[SourceQuality "1"]
[TimeControl "40/5400+30:1800+30"]

1. f4 {[%emt 0:04:30]} d5 {[%emt 0:00:30]} 2. Nf3 {[%emt 0:00:30]} g6 {[%emt 0:00:30]} 3. g3 {[%emt 0:00:00]} Bg7 {[%emt 0:01:30]} 4. Bg2 {[%emt 0:00:00]} e6 {[%emt 0:05:30]} 5. O-O {[%emt 0:01:30]} b5 {[%emt 0:00:30]} 6. d3 {[%emt 0:01:30]} Ne7 {[%emt 0:00:30]} 7. Qe1 {[%emt 0:04:30]} a5 {[%emt 0:04:30]} 8. e4 {[%emt 0:00:30]} O-O {[%emt 0:01:30]} 9. e5 {[%emt 0:11:30]} c5 {[%emt 0:00:30]} 10. Be3 {[%emt 0:06:30]} Qc7 {[%emt 0:07:30]} 11. Nbd2 {[%emt 0:06:30]} Ba6 {[%emt 0:00:30]} 12. Nb3 {[%emt 0:05:30]} d4 {[%emt 0:15:30]} 13. Bf2 {[%emt 0:01:30]} a4 {[%emt 0:00:30]} 14. Nxc5 {[%emt 0:05:30]} Qxc5 {[%emt 0:05:30]} 15. Nxd4 {[%emt 0:00:30]} Nd7 {[%emt 0:04:30]} 16. Nxe6 {[%emt 0:08:30]} Qc8 {[%emt 0:06:30]} 17. Nxf8 {[%emt 0:03:30]} Nxf8 {[%emt 0:00:00]} 18. Qb4 {[%emt 0:03:30]} Nc6 {[%emt 0:05:00]} 19. Qc5 {[%emt 0:01:30]} Nd8 {[%emt 0:00:30]} 20. Rac1 {[%emt 0:03:30]} Nfe6 {[%emt 0:03:30]} 21. Qxc8 {[%emt 0:01:30]} Rxc8 {[%emt 0:00:30]} 22. d4 {[%emt 0:00:30]} Bf8 {[%emt 0:00:30]} 23. d5 {[%emt 0:00:30]} Ng7 {[%emt 0:00:30]} 24. Rfd1 {[%emt 0:02:30]} Bc5 {[%emt 0:04:30]} 25. Bxc5 {[%emt 0:04:30]} Rxc5 {[%emt 0:00:30]} 26. Kf2 {[%emt 0:00:30]} Kf8 {[%emt 0:00:30]} 27. a3 {[%emt 0:02:30]} Nb7 {[%emt 0:04:30]} 28. d6 {[%emt 0:04:00]} Nd8 {[%emt 0:05:30]} 29. Rd5 {[%emt 0:01:28]} Rc6 {[%emt 0:01:30]} 30. Bf1 {[%emt 0:02:32]} Rb6 {[%emt 0:00:30]} 31. b3 {[%emt 0:01:29]} axb3 {[%emt 0:00:30]} 32. cxb3 {[%emt 0:00:09]} Nge6 {[%emt 0:00:00]} 33. b4 {[%emt 0:03:10]} Ke8 {[%emt 0:02:00]} 34. Ke3 {[%emt 0:00:58]} Kd7 {[%emt 0:00:30]} 35. g4 {[%emt 0:03:36]} g5 {[%emt 0:06:18]} 36. f5 {[%emt 0:00:15]} Nf4 {[%emt 0:00:21]} 37. Rc7+ {[%emt 0:01:30]} Ke8 {[%emt 0:00:06]} 38. Rdc5 {[%emt 0:02:19]} h6 {[%emt 0:11:23]} 39. Ra7 {[%emt 0:00:42]} Bb7 {[%emt 0:01:32]} 40. Rxb5 {[%emt 0:00:00]} Ra6 {[%emt 0:00:00]} 41. Rbxb7 {[%emt 0:04:52]} 1-0

[Event "28th CRO-chT 1A-Men 2019"]
[Site "Mali Losinj"]
[Date "2019.10.05"]
[Round "8.6"]
[White "Feletar, Darko"]
[Black "Medak, Bojan"]
[Result "1/2-1/2"]
[ECO "B08"]
[WhiteElo "2356"]
[BlackElo "2351"]
[Annotator "ChessBase"]
[PlyCount "23"]
[EventDate "2019.09.28"]
[EventType "team-tourn"]
[EventCountry "CRO"]
[SourceTitle "playchess.com"]
[Source "ChessBase"]
[SourceQuality "1"]
[TimeControl "40/5400+30:1800+30"]

1. d4 {[%emt 0:04:30]} d6 {[%emt 0:01:30]} 2. e4 {[%emt 0:00:30]} Nf6 {[%emt 0:01:30]} 3. Nc3 {[%emt 0:00:30]} g6 {[%emt 0:00:00]} 4. Nf3 {[%emt 0:00:30]} Bg7 {[%emt 0:00:00]} 5. h3 {[%emt 0:01:30]} O-O {[%emt 0:01:30]} 6. Be3 {[%emt 0:00:30]} c6 {[%emt 0:02:30]} 7. a4 {[%emt 0:01:30]} Nbd7 {[%emt 0:01:30]} 8. Be2 {[%emt 0:09:30]} e5 {[%emt 0:01:30]} 9. dxe5 {[%emt 0:02:30]} dxe5 {[%emt 0:00:30]} 10. O-O {[%emt 0:05:30]} Qe7 {[%emt 0:07:30]} 11. Nd2 {[%emt 0:04:30]} Nc5 {[%emt 0:07:30]} 12. Bc4 {[%emt 0:05:30]} 1/2-1/2

[Event "28th CRO-chT 1A-Men 2019"]
[Site "Mali Losinj"]
[Date "2019.10.05"]
[Round "8.9"]
[White "Blazeka, Matej"]
[Black "Markus, Robert"]
[Result "0-1"]
[ECO "A56"]
[WhiteElo "2385"]
[BlackElo "2599"]
[Annotator "ChessBase"]
[PlyCount "98"]
[EventDate "2019.09.28"]
[EventType "team-tourn"]
[EventCountry "CRO"]
[SourceTitle "playchess.com"]
[Source "ChessBase"]
[SourceQuality "1"]
[TimeControl "40/5400+30:1800+30"]

1. d4 {[%emt 0:00:30]} Nf6 {[%emt 0:00:30]} 2. c4 {[%emt 0:00:00]} c5 {[%emt 0:02:30]} 3. d5 {[%emt 0:02:00]} e5 {[%emt 0:00:30]} 4. Nc3 {[%emt 0:01:30]} d6 {[%emt 0:00:30]} 5. e4 {[%emt 0:01:30]} Nbd7 {[%emt 0:00:00]} 6. Be2 {[%emt 0:04:30]} a6 {[%emt 0:04:00]} 7. Nf3 {[%emt 0:01:30]} Be7 {[%emt 0:00:30]} 8. O-O {[%emt 0:01:30]} Nf8 {[%emt 0:06:30]} 9. a3 {[%emt 0:07:30]} Ng6 {[%emt 0:00:30]} 10. b4 {[%emt 0:00:30]} b6 {[%emt 0:00:30]} 11. bxc5 {[%emt 0:03:30]} bxc5 {[%emt 0:00:30]} 12. Qc2 {[%emt 0:00:30]} O-O {[%emt 0:02:30]} 13. Rb1 {[%emt 0:01:30]} Bd7 {[%emt 0:03:30]} 14. Re1 {[%emt 0:10:30]} Qc8 {[%emt 0:08:30]} 15. Bd1 {[%emt 0:02:30]} Bd8 {[%emt 0:01:30]} 16. Bd2 {[%emt 0:06:30]} Ba5 {[%emt 0:07:30]} 17. Na4 {[%emt 0:04:30]} Qc7 {[%emt 0:00:30]} 18. Bxa5 {[%emt 0:07:30]} Qxa5 {[%emt 0:01:30]} 19. Qc3 {[%emt 0:00:00]} Qc7 {[%emt 0:02:30]} 20. Nb6 {[%emt 0:07:00]} Rab8 {[%emt 0:01:30]} 21. Nxd7 {[%emt 0:00:30]} Qxd7 {[%emt 0:00:30]} 22. Rxb8 {[%emt 0:04:30]} Rxb8 {[%emt 0:00:30]} 23. Nd2 {[%emt 0:01:30]} h5 {[%emt 0:03:30]} 24. g3 {[%emt 0:04:30]} Qh3 {[%emt 0:08:30]} 25. Bf3 {[%emt 0:07:19]} h4 {[%emt 0:04:30]} 26. Bg2 {[%emt 0:01:16]} Qd7 {[%emt 0:05:30]} 27. Bf3 {[%emt 0:05:18]} Nh7 {[%emt 0:01:30]} 28. Rb1 {[%emt 0:04:30]} Rxb1+ {[%emt 0:02:30]} 29. Nxb1 {[%emt 0:00:04]} Ng5 {[%emt 0:00:00]} 30. Nd2 {[%emt 0:01:06]} f5 {[%emt 0:12:00]} 31. Qd3 {[%emt 0:01:47]} f4 {[%emt 0:02:46]} 32. Bh5 {[%emt 0:00:21]} fxg3 {[%emt 0:04:05]} 33. fxg3 {[%emt 0:03:32]} hxg3 {[%emt 0:01:44]} 34. hxg3 {[%emt 0:01:58]} Nf8 {[%emt 0:00:43]} 35. Qe3 {[%emt 0:00:59]} Nfh7 {[%emt 0:02:12]} 36. Bg6 {[%emt 0:00:37]} Qg4 {[%emt 0:01:59]} 37. Bf5 {[%emt 0:01:16]} Qh5 {[%emt 0:01:01]} 38. Bxh7+ {[%emt 0:01:56]} Kxh7 {[%emt 0:01:33]} 39. Kg2 {[%emt 0:00:20]} Qh3+ {[%emt 0:00:57]} 40. Kg1 {[%emt 0:00:00]} Kg6 {[%emt 0:00:00]} 41. Nf1 {[%emt 0:07:11]} Qg4 {[%emt 0:07:30]} 42. Nd2 {[%emt 0:00:30]} Qd1+ {[%emt 0:00:30]} 43. Kg2 {[%emt 0:01:30]} Qc2 {[%emt 0:01:30]} 44. Kf1 {[%emt 0:02:30]} Qc1+ {[%emt 0:01:30]} 45. Ke2 {[%emt 0:01:30]} Kh5 {[%emt 0:02:30]} 46. Qd3 {[%emt 0:03:13]} Kg4 {[%emt 0:03:30]} 47. Nf1 {[%emt 0:02:20]} Qb2+ {[%emt 0:00:30]} 48. Ke1 {[%emt 0:01:15]} Nf3+ {[%emt 0:00:30]} 49. Kd1 {[%emt 0:00:15]} Qa1+ {[%emt 0:00:00]} 0-1

[Event "28th CRO-chT 1A-Men 2019"]
[Site "Mali Losinj"]
[Date "2019.10.05"]
[Round "8.10"]
[White "Kuljasevic, Davorin"]
[Black "Rogulj, Branko"]
[Result "1/2-1/2"]
[ECO "A70"]
[WhiteElo "2550"]
[BlackElo "2394"]
[Annotator "ChessBase"]
[PlyCount "51"]
[EventDate "2019.09.28"]
[EventType "team-tourn"]
[EventCountry "CRO"]
[SourceTitle "playchess.com"]
[Source "ChessBase"]
[SourceQuality "1"]
[TimeControl "40/5400+30:1800+30"]

1. d4 {[%emt 0:00:30]} Nf6 {[%emt 0:00:30]} 2. c4 {[%emt 0:00:00]} c5 {[%emt 0:00:00]} 3. d5 {[%emt 0:00:00]} e6 {[%emt 0:00:00]} 4. Nc3 {[%emt 0:00:30]} exd5 {[%emt 0:00:00]} 5. cxd5 {[%emt 0:00:00]} d6 {[%emt 0:00:00]} 6. Nf3 {[%emt 0:00:00]} g6 {[%emt 0:00:30]} 7. Bf4 {[%emt 0:00:30]} Bg7 {[%emt 0:00:30]} 8. Qa4+ {[%emt 0:00:30]} Bd7 {[%emt 0:00:30]} 9. Qb3 {[%emt 0:00:00]} Qc7 {[%emt 0:00:30]} 10. e4 {[%emt 0:01:00]} Nh5 {[%emt 0:05:30]} 11. Be3 {[%emt 0:00:30]} O-O {[%emt 0:00:30]} 12. Nd2 {[%emt 0:01:30]} a6 {[%emt 0:06:30]} 13. a4 {[%emt 0:02:30]} Be8 {[%emt 0:03:30]} 14. Be2 {[%emt 0:01:30]} f5 {[%emt 0:00:30]} 15. exf5 {[%emt 0:01:30]} gxf5 {[%emt 0:00:00]} 16. Nc4 {[%emt 0:09:30]} Nd7 {[%emt 0:08:00]} 17. O-O {[%emt 0:02:30]} f4 {[%emt 0:10:30]} 18. Bd2 {[%emt 0:00:30]} Ne5 {[%emt 0:00:30]} 19. Nxe5 {[%emt 0:04:30]} Bxe5 {[%emt 0:00:30]} 20. Ne4 {[%emt 0:07:30]} Qg7 {[%emt 0:01:30]} 21. Bf3 {[%emt 0:08:30]} Nf6 {[%emt 0:04:30]} 22. Nxf6+ {[%emt 0:05:30]} Rxf6 {[%emt 0:06:30]} 23. Bc3 {[%emt 0:00:30]} Rf5 {[%emt 0:07:30]} 24. Rfe1 {[%emt 0:02:30]} b5 {[%emt 0:03:30]} 25. axb5 {[%emt 0:05:30]} Bxb5 {[%emt 0:00:30]} 26. Bxe5 {[%emt 0:07:30]} 1/2-1/2

[Event "28th CRO-chT 1A-Men 2019"]
[Site "Mali Losinj"]
[Date "2019.10.05"]
[Round "8.11"]
[White "Vujakovic, Branko"]
[Black "Jovanic, Ognjen"]
[Result "0-1"]
[ECO "C84"]
[WhiteElo "2322"]
[BlackElo "2532"]
[Annotator "ChessBase"]
[PlyCount "102"]
[EventDate "2019.09.28"]
[EventType "team-tourn"]
[EventCountry "CRO"]
[SourceTitle "playchess.com"]
[Source "ChessBase"]
[SourceQuality "1"]
[TimeControl "40/5400+30:1800+30"]

1. e4 {[%emt 0:00:30]} e5 {[%emt 0:01:30]} 2. Nf3 {[%emt 0:00:00]} Nc6 {[%emt 0:00:00]} 3. Bb5 {[%emt 0:00:00]} Nf6 {[%emt 0:00:00]} 4. d4 {[%emt 0:02:30]} exd4 {[%emt 0:11:30]} 5. O-O {[%emt 0:00:30]} a6 {[%emt 0:08:30]} 6. Ba4 {[%emt 0:00:30]} Be7 {[%emt 0:01:30]} 7. e5 {[%emt 0:00:30]} Ne4 {[%emt 0:02:30]} 8. Nxd4 {[%emt 0:00:00]} O-O {[%emt 0:05:30]} 9. Nf5 {[%emt 0:03:00]} d5 {[%emt 0:00:30]} 10. Bxc6 {[%emt 0:00:30]} bxc6 {[%emt 0:00:30]} 11. Nxe7+ {[%emt 0:00:30]} Qxe7 {[%emt 0:00:30]} 12. Re1 {[%emt 0:00:00]} Re8 {[%emt 0:07:30]} 13. f3 {[%emt 0:00:00]} Nc5 {[%emt 0:01:30]} 14. b3 {[%emt 0:04:30]} Ne6 {[%emt 0:02:30]} 15. Ba3 {[%emt 0:13:30]} Qh4 {[%emt 0:03:30]} 16. Nc3 {[%emt 0:01:30]} Qd4+ {[%emt 0:17:30]} 17. Qxd4 {[%emt 0:01:30]} Nxd4 {[%emt 0:00:30]} 18. Rac1 {[%emt 0:01:30]} Bf5 {[%emt 0:00:00]} 19. Bc5 {[%emt 0:04:30]} Ne6 {[%emt 0:01:00]} 20. Bf2 {[%emt 0:06:30]} h5 {[%emt 0:00:30]} 21. h3 {[%emt 0:01:30]} g5 {[%emt 0:00:30]} 22. g4 {[%emt 0:00:30]} Bg6 {[%emt 0:00:30]} 23. h4 {[%emt 0:04:30]} Kg7 {[%emt 0:08:30]} 24. Kg2 {[%emt 0:04:30]} Rh8 {[%emt 0:01:30]} 25. Rh1 {[%emt 0:07:30]} hxg4 {[%emt 0:01:30]} 26. hxg5 {[%emt 0:04:30]} gxf3+ {[%emt 0:02:30]} 27. Kxf3 {[%emt 0:00:30]} Rxh1 {[%emt 0:00:30]} 28. Rxh1 {[%emt 0:00:30]} Bxc2 {[%emt 0:00:30]} 29. Rc1 {[%emt 0:01:30]} Bf5 {[%emt 0:03:31]} 30. Ne2 {[%emt 0:02:30]} Be4+ {[%emt 0:00:46]} 31. Kg4 {[%emt 0:01:30]} Rh8 {[%emt 0:02:40]} 32. Bg1 {[%emt 0:08:30]} Bg6 {[%emt 0:05:57]} 33. Nd4 {[%emt 0:01:30]} Rh1 {[%emt 0:00:51]} 34. Nxe6+ {[%emt 0:03:30]} fxe6 {[%emt 0:00:01]} 35. Kg3 {[%emt 0:03:30]} Bf5 {[%emt 0:00:08]} 36. Kf2 {[%emt 0:07:54]} Kg6 {[%emt 0:01:32]} 37. Rxc6 {[%emt 0:00:12]} Kxg5 {[%emt 0:00:07]} 38. Rxc7 {[%emt 0:02:26]} Kf4 {[%emt 0:00:22]} 39. Ra7 {[%emt 0:07:17]} Bd3 {[%emt 0:01:56]} 40. Rg7 {[%emt 0:00:00]} Kxe5 {[%emt 0:00:00]} 41. Ke3 {[%emt 0:03:11]} Bf5 {[%emt 0:03:39]} 42. Rg2 {[%emt 0:05:30]} d4+ {[%emt 0:00:30]} 43. Kf2 {[%emt 0:01:30]} Rh3 {[%emt 0:02:30]} 44. Ke2 {[%emt 0:00:30]} Kd5 {[%emt 0:01:30]} 45. Rg8 {[%emt 0:02:30]} e5 {[%emt 0:03:30]} 46. Kd2 {[%emt 0:00:00]} Rd3+ {[%emt 0:01:30]} 47. Ke1 {[%emt 0:01:00]} Rc3 {[%emt 0:03:30]} 48. Rd8+ {[%emt 0:01:30]} Ke4 {[%emt 0:01:30]} 49. Kd2 {[%emt 0:00:30]} Rg3 {[%emt 0:01:30]} 50. Bf2 {[%emt 0:00:30]} Rd3+ {[%emt 0:00:00]} 51. Kc2 {[%emt 0:00:00]} Rh3 {[%emt 0:03:00]} 0-1

[Event "28th CRO-chT 1A-Men 2019"]
[Site "Mali Losinj"]
[Date "2019.10.05"]
[Round "8.12"]
[White "Plenca, Jadranko"]
[Black "Brumen, Dinko"]
[Result "1-0"]
[ECO "B52"]
[WhiteElo "2461"]
[BlackElo "2317"]
[Annotator "ChessBase"]
[PlyCount "103"]
[EventDate "2019.09.28"]
[EventType "team-tourn"]
[EventCountry "CRO"]
[SourceTitle "playchess.com"]
[Source "ChessBase"]
[SourceQuality "1"]
[TimeControl "40/5400+30:1800+30"]

1. e4 {[%emt 0:01:30]} c5 {[%emt 0:03:30]} 2. Nf3 {[%emt 0:00:00]} d6 {[%emt 0:00:00]} 3. Bb5+ {[%emt 0:01:00]} Bd7 {[%emt 0:00:00]} 4. Bxd7+ {[%emt 0:00:00]} Qxd7 {[%emt 0:00:30]} 5. O-O {[%emt 0:00:00]} Nf6 {[%emt 0:01:30]} 6. e5 {[%emt 0:00:30]} Ng4 {[%emt 0:03:30]} 7. d4 {[%emt 0:07:30]} cxd4 {[%emt 0:05:30]} 8. exd6 {[%emt 0:01:30]} Qxd6 {[%emt 0:01:30]} 9. Qxd4 {[%emt 0:10:30]} Qxd4 {[%emt 0:02:30]} 10. Nxd4 {[%emt 0:02:30]} e6 {[%emt 0:03:30]} 11. Nb5 {[%emt 0:01:30]} Na6 {[%emt 0:00:30]} 12. h3 {[%emt 0:02:30]} Ne5 {[%emt 0:02:30]} 13. Bf4 {[%emt 0:02:30]} Nc6 {[%emt 0:08:30]} 14. N1c3 {[%emt 0:03:30]} Be7 {[%emt 0:06:30]} 15. Rad1 {[%emt 0:06:30]} e5 {[%emt 0:26:30]} 16. Be3 {[%emt 0:01:30]} b6 {[%emt 0:03:30]} 17. Nd5 {[%emt 0:02:30]} O-O {[%emt 0:02:30]} 18. Nxe7+ {[%emt 0:00:30]} Nxe7 {[%emt 0:00:00]} 19. Rd7 {[%emt 0:01:30]} Nc6 {[%emt 0:06:00]} 20. Rfd1 {[%emt 0:02:30]} Nc5 {[%emt 0:09:39]} 21. Bxc5 {[%emt 0:00:30]} bxc5 {[%emt 0:00:30]} 22. R1d5 {[%emt 0:01:30]} a6 {[%emt 0:06:38]} 23. Nc7 {[%emt 0:06:30]} Rab8 {[%emt 0:00:59]} 24. Rxc5 {[%emt 0:01:30]} Nd4 {[%emt 0:01:24]} 25. b3 {[%emt 0:03:30]} Rb7 {[%emt 0:00:13]} 26. Rxe5 {[%emt 0:00:30]} Nxc2 {[%emt 0:00:36]} 27. Rc5 {[%emt 0:00:30]} Na3 {[%emt 0:01:43]} 28. Rdd5 {[%emt 0:02:30]} Ra7 {[%emt 0:01:43]} 29. Ra5 {[%emt 0:04:30]} Nc2 {[%emt 0:02:01]} 30. Rdc5 {[%emt 0:01:30]} Nb4 {[%emt 0:00:22]} 31. Rc4 {[%emt 0:03:30]} Rb8 {[%emt 0:00:23]} 32. a3 {[%emt 0:01:30]} Rc8 {[%emt 0:00:35]} 33. Rxb4 {[%emt 0:01:30]} Raxc7 {[%emt 0:00:15]} 34. Rxa6 {[%emt 0:00:00]} h5 {[%emt 0:00:06]} 35. Rab6 {[%emt 0:01:00]} Kh7 {[%emt 0:00:48]} 36. R4b5 {[%emt 0:02:30]} g6 {[%emt 0:00:18]} 37. Rb7 {[%emt 0:00:30]} Rc1+ {[%emt 0:00:13]} 38. Kh2 {[%emt 0:00:00]} Kg7 {[%emt 0:00:18]} 39. Rb4 {[%emt 0:00:00]} g5 {[%emt 0:00:43]} 40. h4 {[%emt 0:00:00]} R8c2 {[%emt 0:00:00]} 41. R7b5 {[%emt 0:04:00]} gxh4 {[%emt 0:07:33]} 42. Rf4 {[%emt 0:01:30]} Ra1 {[%emt 0:01:30]} 43. a4 {[%emt 0:00:30]} Kg6 {[%emt 0:00:30]} 44. Rb6+ {[%emt 0:01:30]} Kg7 {[%emt 0:01:30]} 45. Rb5 {[%emt 0:00:30]} Kg6 {[%emt 0:00:30]} 46. a5 {[%emt 0:00:30]} Rb2 {[%emt 0:02:30]} 47. Rxh4 {[%emt 0:02:30]} Rxf2 {[%emt 0:00:30]} 48. Rhxh5 {[%emt 0:00:30]} f5 {[%emt 0:01:30]} 49. Rh3 {[%emt 0:01:30]} Raa2 {[%emt 0:03:54]} 50. Rg3+ {[%emt 0:00:30]} Kf6 {[%emt 0:02:03]} 51. Kh3 {[%emt 0:00:30]} Ke6 {[%emt 0:05:43]} 52. Rg6+ {[%emt 0:44:10]} 1-0

[Event "28th CRO-chT 1A-Men 2019"]
[Site "Mali Losinj"]
[Date "2019.10.05"]
[Round "8.13"]
[White "Georgiev, Kiril"]
[Black "Kryvoruchko, Yuriy"]
[Result "1/2-1/2"]
[ECO "E05"]
[WhiteElo "2577"]
[BlackElo "2669"]
[Annotator "ChessBase"]
[PlyCount "32"]
[EventDate "2019.09.28"]
[EventType "team-tourn"]
[EventCountry "CRO"]
[SourceTitle "playchess.com"]
[Source "ChessBase"]
[SourceQuality "1"]
[TimeControl "40/5400+30:1800+30"]

1. d4 {[%emt 0:01:30]} Nf6 {[%emt 0:00:30]} 2. c4 {[%emt 0:00:30]} e6 {[%emt 0:00:00]} 3. Nf3 {[%emt 0:00:00]} d5 {[%emt 0:00:00]} 4. g3 {[%emt 0:00:00]} Be7 {[%emt 0:00:30]} 5. Bg2 {[%emt 0:00:30]} O-O {[%emt 0:00:00]} 6. O-O {[%emt 0:00:00]} dxc4 {[%emt 0:00:00]} 7. Ne5 {[%emt 0:01:00]} Nc6 {[%emt 0:00:00]} 8. Bxc6 {[%emt 0:00:00]} bxc6 {[%emt 0:00:00]} 9. Nxc6 {[%emt 0:00:00]} Qe8 {[%emt 0:00:00]} 10. Nxe7+ {[%emt 0:00:30]} Qxe7 {[%emt 0:00:00]} 11. Qa4 {[%emt 0:02:30]} e5 {[%emt 0:00:30]} 12. dxe5 {[%emt 0:00:30]} Qxe5 {[%emt 0:00:00]} 13. Qxc4 {[%emt 0:00:00]} Be6 {[%emt 0:00:00]} 14. Qc2 {[%emt 0:00:00]} Bf5 {[%emt 0:00:30]} 15. Qc4 {[%emt 0:00:00]} Be6 {[%emt 0:00:30]} 16. Qc2 {[%emt 0:00:00]} Bf5 {[%emt 0:00:30]} 1/2-1/2